Cogmind - Beta 11.1 @@@ ROGUE MODE // 2022.10.09 @ 03:27:43 Player: Mombamambo Result: Destroyed by as-82215 with Assembled Heavy Rifle Performance ------------- Evolutions (0) 0 Regions Visited (4) 800 Robots Destroyed (8) 40 Value Destroyed (232) 232 Prototype IDs (0) 0 Alien Tech Used (0) 0 Bonus (0) 0 TOTAL SCORE: 1072 Bonus ------- None Cogmind --------- Core Integrity 0/250 Matter 300/300 Energy 115/125 System Corruption 1% Temperature Cool (25) Movement Core (50) Location -9/Mines Parts ------- > --- POWER (1) -------- Light Ion Engine > --- PROPULSION (2) --- (None) > --- UTILITY (2) ------ (None) > --- WEAPON (2) ------- (None) > --- INVENTORY (5) ---- Ion Engine Medium Matter Pod (100) Medium Matter Pod (81) High-capacity Matter Pod (200) Makeshift System Restoration Module Peak State ------------ > --- POWER ------------ Light Ion Engine > --- PROPULSION ------- Aluminum Leg Compact Wheel > --- UTILITY ---------- Humpback > --- WEAPON ----------- Small Laser Particle Gun > --- INVENTORY -------- Ion Engine Medium Matter Pod Medium Matter Pod High-capacity Matter Pod High-capacity Matter Pod Makeshift Sensor Array Makeshift Cloaking Device Makeshift System Restoration Module Grenade Launcher Grenade Launcher [Rating: 10] Favorites ----------- Power Light Ion Engine Engine Light Ion Engine Propulsion Compact Wheel Leg Aluminum Leg Wheel Compact Wheel Utility Humpback Device Terrain Scanner Storage Humpback Weapon Small Laser Energy Gun Small Laser Build | -11 -10 -10 -10 -9 ------- Run | Scr Mat Min Exi Min Slots Evolved . | . . . . . Power . | . . . . . Propulsion . | . . . . . Utility . | . . . . . Weapon . | . . . . . Parts Attached 13 | 6 6 . 1 . Power 2 | 1 1 . . . Engine 2 | 1 1 . . . Core . | . . . . . Reactor . | . . . . . Propulsion 3 | 2 1 . . . Treads . | . . . . . Leg 1 | . 1 . . . Wheel 2 | 2 . . . . Hover . | . . . . . Flight . | . . . . . Utility 4 | 1 2 . 1 . Device 1 | . 1 . . . Storage 3 | 1 1 . 1 . Processor . | . . . . . Hackware . | . . . . . Protection . | . . . . . Artifact . | . . . . . Weapon 4 | 2 2 . . . Energy Gun 4 | 2 2 . . . Energy Cannon . | . . . . . Ballistic Gun . | . . . . . Ballistic Cannon . | . . . . . Launcher . | . . . . . Special Weapon . | . . . . . Impact Weapon . | . . . . . Slashing Weapon . | . . . . . Piercing Weapon . | . . . . . Special Melee Weapon . | . . . . . Unidentified Prototypes . | . . . . . Parts Lost 6 | . 3 . . 3 Power 1 | . 1 . . . Propulsion 3 | . 1 . . 2 Utility . | . . . . . Weapon 2 | . 1 . . 1 Highest Loss Streak 3 | . 2 . . 3 To Critical Strikes . | . . . . . Average Slot Usage (%) 85 | . 77 100 86 80 Engine 13 | . 8 14 14 14 Leg 13 | . 7 14 14 12 Wheel 14 | . 17 14 14 12 Device 1 | . . 14 . . Storage 13 | . 14 14 14 12 Energy Gun 27 | . 28 28 28 26 Naked Turns . | . . . . . Heaviest Build 207 | 11 48 48 207 207 Greatest Support 26 | 26 26 16 16 16 Greatest Overweight (x) 12 | . 2 2 12 12 Average Overweight (x) 8 | . 1 2 10 12 Largest Inventory Capacity 35 | 8 20 20 35 35 Average Capacity 31 | 6 19 20 33 34 Most Carried 11 | . 2 2 11 11 Average Carried 5 | . . 2 6 10 Final Capacity 35 | 8 20 20 35 5 Final Carried 11 | . 2 2 11 5 Class Distribution -------------------- 79% | Hauler-Mutant 11% | Scavenger-Mutant 9% | Mutant Dominant Class ---------------- Mutant | -10/Materials Scavenger-Mutant | -10/Mines Hauler-Mutant | -10/Exiles Hauler-Mutant | -9/Mines Resources | -11 -10 -10 -10 -9 ----------- Run | Scr Mat Min Exi Min Matter Collected 440 | 177 113 . 150 . Remotely . | . . . . . Salvage Created 245 | . 215 . 30 . Parts 10 | . 10 . . . Haulers Intercepted . | . . . . . Recyclers Shooed . | . . . . . Parts Field Recycled . | . . . . . Retrieved Matter . | . . . . . Parts Self-Destructed . | . . . . . Prevented . | . . . . . Kills | -11 -10 -10 -10 -9 ------- Run | Scr Mat Min Exi Min Combat Hostiles Destroyed 8 | . 7 . . 1 Guns 8 | . 7 . . 1 Classes Destroyed 3 | . 2 . . 1 Swarmer 3 | . 3 . . . Grunt 4 | . 4 . . . Demolisher 1 | . . . . 1 Best Kill Streak 3 | . 3 . . 1 Combat Bots Only 3 | . 3 . . 1 Max Kills in Single Turn 1 | . 1 . . 1 Gunslinging . | . . . . . Exploded . | . . . . . Melee . | . . . . . Uniques/NPCs Destroyed . | . . . . . Combat | -11 -10 -10 -10 -9 -------- Run | Scr Mat Min Exi Min Damage Taken 909 | . 499 . . 410 Core 262 | . 163 . . 99 Absorbed by Shields . | . . . . . Core Remaining (%) 100 | 100 . . . . Volleys Fired 36 | . 28 . 5 3 Largest 2 | . 2 . 2 2 Hottest 105 | . 105 . 105 105 Shots Fired 73 | . 56 . 11 6 Gun 73 | . 56 . 11 6 Cannon . | . . . . . Launcher . | . . . . . Special . | . . . . . Kinetic . | . . . . . Thermal 73 | . 56 . 11 6 Explosive . | . . . . . Electromagnetic . | . . . . . Robot Hit Streak 10 | . 8 . 9 10 Robot Miss Streak 5 | . 5 . 1 1 Penetration Max . | . . . . . Secondary Targets 1 | . 1 . . . Max Gunslinging Chain 1 | . 1 . . . Shots Hit Robots 42 | . 29 . 9 4 Core Hits 14 | . 11 . 2 1 Critical Kills . | . . . . . Critical Parts Destroyed . | . . . . . Critical Strikes . | . . . . . Melee Attacks . | . . . . . Impact . | . . . . . Slashing . | . . . . . Piercing . | . . . . . Sneak Attacks . | . . . . . Combat Hostiles . | . . . . . Follow-up Attacks . | . . . . . Damage Inflicted 529 | . 362 . 113 54 Guns 529 | . 362 . 113 54 Cannons . | . . . . . Explosions . | . . . . . Melee . | . . . . . Ramming . | . . . . . Kinetic . | . . . . . Thermal 529 | . 362 . 113 54 Explosive . | . . . . . Electromagnetic . | . . . . . Impact . | . . . . . Slashing . | . . . . . Piercing . | . . . . . Highest Corruption 1 | . 1 1 1 1 Average Corruption 1 | . 1 1 1 1 Corruption Purged . | . . . . . Corruption Blocked . | . . . . . Effects 24 | . . 1 22 1 Message Errors 9 | . . . 8 1 Matter Fused 5 | . . . 5 . Heat Flow Errors 4 | . . . 4 . Energy Discharges 1 | . . . 1 . Data Loss (minor) 2 | . . . 2 . Data Loss (major) 2 | . . 1 1 . Misfires 1 | . . . 1 . Overload Shots . | . . . . . Overflow Damage . | . . . . . Projectiles . | . . . . . Explosions . | . . . . . Melee . | . . . . . Knockbacks . | . . . . . Impact . | . . . . . Kinetic . | . . . . . Secondary . | . . . . . Self-Inflicted Damage . | . . . . . Shots . | . . . . . Rammed . | . . . . . Targets Rammed . | . . . . . Kicked . | . . . . . Crushed . | . . . . . Highest Temperature 334 | . 334 . 239 90 Average Temperature 131 | . 155 . 108 42 Received Heat Transfer 204 | . 204 . . . Siege Activations . | . . . . . Robots Corrupted . | . . . . . Combat Hostiles . | . . . . . Parts Fried . | . . . . . Impact Corruptions . | . . . . . Robots Melted . | . . . . . Combat Hostiles . | . . . . . Parts Melted 3 | . 3 . . . Heat Transferred 1278 | . 881 . 273 124 Parts Sabotaged . | . . . . . Parts Stolen . | . . . . . Parts Stripped . | . . . . . Power Chain Reactions . | . . . . . Missiles Intercepted . | . . . . . Alert | -11 -10 -10 -10 -9 ------- Run | Scr Mat Min Exi Min Peak Influence 200 | . 200 78 . 31 Initial 78 | . . 78 . . Average 79 | . 129 78 . 2 Maximum Alert Level 1 | . 1 . . . Low Security (%) 80 | 100 63 100 . 100 Level 1 19 | . 36 . . . Level 2 . | . . . . . Level 3 . | . . . . . Level 4 . | . . . . . Level 5 . | . . . . . High Security . | . . . . . Max Security . | . . . . . Squads Dispatched 1 | . 1 . . . Investigation . | . . . . . Extermination . | . . . . . Reinforcement 1 | . 1 . . . Assault . | . . . . . Garrison . | . . . . . Intercept . | . . . . . Searches Triggered . | . . . . . Construction Impeded . | . . . . . Haulers Reinforced . | . . . . . Active Scanning Responses . | . . . . . Cargo Convoy Interrupts . | . . . . . Stealth | -11 -10 -10 -10 -9 --------- Run | Scr Mat Min Exi Min Distress Signals 1 | . 1 . . . Communications Jammed . | . . . . . Distress Signals . | . . . . . Times Spotted 16 | . 10 . . 6 Peak Tracking Total 6 | . 6 . . 5 Tactical Retreats 1 | . 1 . . . Traps | -11 -10 -10 -10 -9 ------- Run | Scr Mat Min Exi Min Traps Triggered 1 | . 1 . . . Indirectly . | . . . . . Trap Hack Attempts . | . . . . . Triggered . | . . . . . Disarmed . | . . . . . Reprogrammed . | . . . . . Reused . | . . . . . Traps Extracted . | . . . . . Installed . | . . . . . Triggered . | . . . . . Machines | -11 -10 -10 -10 -9 ---------- Run | Scr Mat Min Exi Min Machines Disabled . | . . . . . Max in Single Turn . | . . . . . Machines Sabotaged . | . . . . . Garrisons Compromised . | . . . . . Overloaded Fab Kills . | . . . . . Hacking | -11 -10 -10 -10 -9 --------- Run | Scr Mat Min Exi Min Machines Accessed 1 | . . . 1 . Terminals . | . . . . . Fabricators . | . . . . . Repair Stations . | . . . . . Recycling Units . | . . . . . Scanalyzers . | . . . . . Garrison Access . | . . . . . Total Hacks 23 | . . . 23 . Successful 23 | . . . 23 . Failed . | . . . . . Catastrophic . | . . . . . Database Lockouts . | . . . . . Manual 2 | . . . 2 . Terminals . | . . . . . Fabricators . | . . . . . Repair Stations . | . . . . . Recycling Units . | . . . . . Scanalyzers . | . . . . . Garrison Access . | . . . . . Terminal Hacks 23 | . . . 23 . Record 23 | . . . 23 . Fabricator Hacks . | . . . . . Repair Station Hacks . | . . . . . Recycling Unit Hacks . | . . . . . Scanalyzer . | . . . . . Garrison Access Hacks . | . . . . . Unauthorized Hacks . | . . . . . Terminals . | . . . . . Fabricators . | . . . . . Repair Stations . | . . . . . Recycling Units . | . . . . . Scanalyzers . | . . . . . Garrison Access . | . . . . . Data Cores Recovered . | . . . . . Used . | . . . . . Hacking Detections . | . . . . . Full Trace Events . | . . . . . Feedback Events . | . . . . . Feedback Blocked . | . . . . . Robot Schematics Acquired . | . . . . . Robots Built . | . . . . . Authchips . | . . . . . Time . | . . . . . Total Robot Build Rating . | . . . . . Part Schematics Acquired . | . . . . . Parts Built . | . . . . . Authchips . | . . . . . Time . | . . . . . Total Part Build Rating . | . . . . . Parts Repaired . | . . . . . Time . | . . . . . Parts Recycled . | . . . . . Recycled Matter . | . . . . . Retrieved Matter . | . . . . . Retrieved Components . | . . . . . Parts Scanalyzed . | . . . . . Part Schematics Acquired . | . . . . . Parts Damaged . | . . . . . Bothacking | -11 -10 -10 -10 -9 ------------ Run | Scr Mat Min Exi Min Used RIF Installer . | . . . . . Robots Hacked . | . . . . . Non-combat . | . . . . . Combat . | . . . . . Robot Hacks Applied . | . . . . . Relay Couplers Released . | . . . . . Fabnet Peak Effective % . | . . . . . Robots Rewired 2 | . . . 2 . Allies Hacked . | . . . . . Hacks Repelled . | . . . . . Allies | -11 -10 -10 -10 -9 -------- Run | Scr Mat Min Exi Min Total Allies 2 | . . . 2 . Largest Group 2 | . . . 2 2 Highest-Rated Group 16 | . . . 16 16 Highest-Rated Ally 8 | . . . 8 8 Total Orders . | . . . . . Ally Attacks . | . . . . . Total Damage . | . . . . . Kills . | . . . . . Allies Corrupted . | . . . . . Allies Melted . | . . . . . Intel | -11 -10 -10 -10 -9 ------- Run | Scr Mat Min Exi Min Robot Analysis Total . | . . . . . Derelict Logs Recovered . | . . . . . Drone Launches . | . . . . . Drone Recoveries . | . . . . . Exploration | -11 -10 -10 -10 -9 ------------- Run | Scr Mat Min Exi Min Turns Passed 2439 | 53 255 73 1947 111 Spaces Moved 1003 | 51 126 57 733 36 Core 4 | 4 . . . . Treads . | . . . . . Legs . | . . . . . Wheels 999 | 47 126 57 733 36 Hover . | . . . . . Flight . | . . . . . Fastest Speed 50 | 50 90 130 130 280 Average Speed 228 | 87 121 130 261 280 Slowest Speed 280 | 100 130 130 280 280 Overloaded Moves . | . . . . . Propulsion Burnouts . | . . . . . Robots Hopped . | . . . . . Cave-ins Triggered . | . . . . . Exploration Rate (%) 33 | 3 26 27 92 18 Regions Visited 4 Branch Regions 3 Pre-discovered Areas 1 | . . . 1 . Known Exits Taken . | . . . . . Unknown Exits Taken 4 | 1 1 1 1 . Scrap Searched . | . . . . . Spaces Dug . | . . . . . Terrain Destroyed . | . . . . . Melee . | . . . . . Projectile . | . . . . . AOE . | . . . . . Terrain Rammed . | . . . . . Walls Destroyed . | . . . . . Machines Disabled . | . . . . . Actions | -11 -10 -10 -10 -9 --------- Run | Scr Mat Min Exi Min Total 1075 | 56 169 56 753 41 Wait 7 | . 6 . 1 . Move 999 | 50 125 56 732 36 Hop . | . . . . . Pick Up 11 | . 2 . 9 . Fast Attach 13 | 6 6 . 1 . Attach . | . . . . . Detach . | . . . . . Swap . | . . . . . Drop 6 | . 2 . 2 2 Fire 36 | . 28 . 5 3 Melee . | . . . . . Ram . | . . . . . Kick . | . . . . . Crush . | . . . . . Escape Stasis . | . . . . . Rewire 3 | . . . 3 . Trap . | . . . . . Miscellaneous . | . . . . . Route ------- -11/Scrapyard -10/Materials -10/Mines -10/Exiles (discovered 2 exits: [*Min x2]) -9/Mines History --------- Turn | Location | Event 10 | -11/Scrapyard | Discovered new exit (range 15) 54 | -11/Scrapyard | Entered Materials 189 | -10/Materials | Core integrity fell below 50% 276 | -10/Materials | Discovered new exit (range 8) 309 | -10/Materials | Entered Mines 311 | -10/Mines | Met a Derelict bent on vengeance 377 | -10/Mines | Deemed a non-threat by the Exiles lab entrance 377 | -10/Mines | Discovered new exit (range 5) 382 | -10/Mines | Entered Exiles 382 | -10/Exiles | Found Exiles lab destroyed 645 | -10/Exiles | Learned location of Zion (-7) 821 | -10/Exiles | Build established: Hauler-Mutant 1229 | -10/Exiles | Discovered new exit (range 14) 1978 | -10/Exiles | Discovered new exit (range 14) 2329 | -10/Exiles | Entered Mines 2329 | -9/Mines | Accompanied by 2 allies 2330 | -9/Mines | Assembled infested the area 2335 | -9/Mines | Assisted by a Guerilla fighting off Assembled 2426 | -9/Mines | Core integrity fell below 20% 2440 | -9/Mines | Destroyed by as-82215 with Assembled Heavy Rifle Last Messages --------------- 02263_ System corrupted: Energy discharge (-38). LOCATION=UNKNOWN GOAL=ESCAPE 02330_ ALERT: Infestation in the mines, dispatching Demolisher response squad. 02335_ A derelict emerges from the shadows: "You need to get out of here! I've been tracking a group of Assembled to figure out where they're coming from, and they're closing on this area, come on!" 02358_ /FDJBZLNPQNM4D2 &ERD6ICKE CFXWW&F&S 02422_ Mercenary 1a destroyed. 02422_ D-53 Grenadier destroyed. 02425_ Mercenary 1b destroyed. 02428_ The unstable cave ceiling collapses. 02432_ Aluminum Leg destroyed. 02434_ The unstable cave ceiling collapses. 02435_ Com. Wheel destroyed. 02437_ Particle Gun destroyed. 02439_ Dropped Humpback. 02440_ as-62124 sneak attacks. 02440_ Dropped Sml. Laser. Map ----- +----------------------------------------------------+ | | | | | | | ??????????????????????????????????????? | | ??????????????????????????????????????? | | ???????????????????####???????????????? | | ?????????????????## ##??????????????? | | ????????????###### #??????????????? | | ????????????# ##?????????????? | | ????????????# #?# ??????????????? | | ????????????# ### #????????????????? | | ????????##### ## #??######????????? | | ???????## #### ##???????? | | ??????## #???????? | | ??????# #### """ #???????? | | ??????# #??# """ ##??????? | | ??????## #?## """ #??????? | | ???????## #??## #??????? | | ????????## ##???## ## #??????? | | ?????????####?????##### ##?####??????? | | ??????????????????????## #????????????? | | ?????????????????????### #####????????? | | ?????????????????????# #????????? | | ?????????????????????# # #??????? | | ????????????????????## ][ #??????? | | ????????????????##### !@/ #??????? | | ?????????????#### !]! ##??????? | | ?????????? a #???????? | | ???????????###### %a a = ##???????? | | ????????????????# # a #t #????????? | | ?????????????? *= #???????? | | ????????????# ##???????? | | ????????????# # ???????? | | ???????????? d """??????? | | ???????????? r] """ ?????? | | ????????????# """ ????? | | ????????????? ??#???? | | ?????????????? ### ???????? | | ?????????????? % ##???# ??????? | | ?????????????? #?????? ??????? | | ???????????????? #???????# ??????? | | ??????????????????##?????????# ??????? | | ??????????????????????????????????????? | | ??????????????????????????????????????? | | ??????????????????????????????????????? | | ??????????????????????????????????????? | | ??????????????????????????????????????? | | ??????????????????????????????????????? | | ??????????????????????????????????????? | | ??????????????????????????????????????? | +----------------------------------------------------+ Best States ------------- Heat Dissipation 25 Energy Generation 10 Energy Capacity 125 Matter Stores 300 Matter Capacity 300 Sight Range 16 Terrain Scan Range 14 Terrain Scan Density 10 Evasion (%) 42 Item Schematics ----------------- None Robot Schematics ------------------ None Fabricated ------------ Nothing Alien Tech Used ----------------- None Achievements -------------- None Challenges ------------ None Game ------ Seed UtilityStorageGun Manual? 0 Play Time 00:11:26 Cumulative 45.0 hours Start 2022.10.09 @ 03:16:53 End 2022.10.09 @ 03:27:43 Sessions 1 Manual Loads 0 Difficulty Rogue Special Mode None Game No. 32 Rogue 32 Adventurer 0 Explorer 0 Win Type - Total 0 Types 0/0/0/0/0/0/0/0/0 Lore% 37 Gallery% 49 Achievement% 36 Wizard Run 0 Options --------- ASCII 0 Keyboard 0 Movement Mouse Keybinds 0 Fullscreen 1 Font 18/SmallcapsGlow Map View 76x50 Tactical HUD 1 Map Filters NONE Filters NONE Steam 1 RUN: 92f9c318-df2d-434b-ad29-4352037f3448